[Event "CCT Julius Baer-D3 2024"]
[Site "Online"]
[Date "2024.09.27"]
[Round "1.3"]
[White "Kobalia, Mikhail"]
[Black "Sindarov, Javokhir"]
[Result "0-1"]
[ECO "B33"]
[WhiteElo "2543"]
[BlackElo "2677"]
[Annotator "TA"]
[PlyCount "84"]
[EventDate "2024.09.25"]
[EventType "swiss"]
[EventCountry "NET"]
[SourceTitle "playchess.com"]
[Source "ChessBase"]
[SourceQuality "1"]
[TimeControl "600+2"]

{[%evp 26,84,17,13,6,6,18,0,14,15,0,0,0,0,-8,-16,-7,-77,-88,-74,-79,-86,-74,-91,-57,-91,-91,-95,-78,-72,-70,-89,-88,-162,-113,-178,-159,-254,-267,-256,-250,-269,-268,-250,-235,-358,-366,-359,-272,-270,-281,-270,-291,-452,-450,-675,-611,-817,-790,-1948,-1929]} 1. e4 {[%emt 0:00:03]} c5 {[%emt 0:00:03]} 2. Nf3 {[%emt 0:00:01]} e6 {[%emt 0:00:01]} 3. d4 {[%emt 0:00:03]} cxd4 {[%emt 0:00:00]} 4. Nxd4 {[%emt 0:00:00]} Nf6 {[%emt 0:00:00]} 5. Nc3 {[%emt 0:00:01]} Nc6 {[%emt 0:00:02]} 6. Ndb5 {[%emt 0:00:01][%cal Bd4b5,Bb5a3,Ba3c2,Bc2e3][%mdl 32]} d6 {[%emt 0:00:01]} 7. Bf4 {[%emt 0:00:01]} e5 {[%emt 0:00:03]} 8. Bg5 {[%emt 0:00:01]} a6 {[%emt 0:00:01]} 9. Na3 {[%emt 0:00:01]} b5 {[%emt 0:00:00][%cal Bb7b5,Bb5b4][%mdl 32]} 10. Nd5 {[%emt 0:00:00]} Be7 {[%emt 0:00:00]} 11. Bxf6 {[%emt 0:00:01]} Bxf6 {[%emt 0:00:00]} 12. c4 {[%emt 0:00:01]} b4 {[%emt 0:00:02]} 13. Nc2 {[%emt 0:00:02]} a5 {[%emt 0:00:02]} 14. Be2 {[%emt 0:00:00]} O-O {[%emt 0:00:01]} 15. O-O {[%emt 0:00:01]} Be6 {[%emt 0:00:01]} 16. Qd3 {[%emt 0:00:01]} Bxd5 {[%emt 0:00:03] The position is equal.} 17. cxd5 {[%emt 0:00:02]} Nb8 {[%emt 0:00:01][%cal Bc6b8,Bb8d7,Bd7c5][%mdl 32]} 18. Ne3 {[%emt 0:00:01]} Nd7 {[%emt 0:00:01]} 19. Rac1 {[%emt 0:00:02]} Bg5 {[%emt 0:00:02]} 20. Rc6 {[%emt 0:00:41]} Nc5 {[%emt 0:00:03]} 21. Qc2 {[%emt 0:01:25]} (21. Rxc5 $1 $11 Bxe3 (21... dxc5 22. Nc4 $14) 22. Rc6) 21... Bxe3 $17 {[%emt 0:00:05]} 22. fxe3 {[%emt 0:00:00]} g6 {[%emt 0:01:21]} 23. g3 {[%emt 0:01:12]} Qe7 {[%emt 0:00:55]} 24. Kg2 {[%emt 0:00:04]} Ra7 {[%emt 0:00:40]} 25. h4 {[%emt 0:00:04]} Kg7 {[%emt 0:00:05]} 26. Rd1 {[%emt 0:00:11][%cal Oc6c5]} Rc7 {[%emt 0:00:22]} 27. Bb5 {[%emt 0:01:09]} Rb8 {[%emt 0:00:17]} 28. Ba4 {[%emt 0:00:23][%cal Oc2c5]} Qd8 {[%emt 0:01:11]} 29. b3 {[%emt 0:00:18]} (29. Rf1 $17) 29... Rbb7 {[%emt 0:00:52]} (29... Qc8 $19 {Hoping for ...Rxc6.} 30. Rc1 Rxc6 31. dxc6 Qg4) 30. Qc4 {[%emt 0:00:11]} (30. Rc1 $17 {might work better.}) 30... Qc8 $19 {[%emt 0:00:03]} 31. Rc1 {[%emt 0:03:25]} (31. Bb5 $17) 31... Qg4 {[%emt 0:00:12]} 32. Qf1 {[%emt 0:00:01][%cal Oc1c5] [#]} Nxe4 {[%emt 0:00:50]} 33. Qf3 {[%emt 0:00:03]} Qxf3+ {[%emt 0:00:02]} 34. Kxf3 {[%emt 0:00:00]} Nc3 {[%emt 0:00:00]} 35. Rxd6 {[%emt 0:00:10]} (35. a3 $142) 35... e4+ {[%emt 0:00:02]} (35... Nxa2 36. Rxc7 e4+ (36... Rxc7 37. Rc6 $16) 37. Kg2 (37. Kxe4 Rxc7 38. Kd4 Nc3 $16) 37... Rxc7 38. Rc6 $14) 36. Kg2 {[%emt 0:00:02]} Nxa4 {[%emt 0:00:01]} (36... Nxa2 37. Rxc7 Rxc7 38. Rc6 $18) 37. Rxc7 {[%emt 0:00:07]} Rxc7 {[%emt 0:00:00]} 38. bxa4 {[%emt 0:00:02] KR-KR} Rc2+ {[%emt 0:00:03]} 39. Kh3 {[%emt 0:00:01]} Rxa2 {[%emt 0:00:00] Black is clearly winning.} 40. Ra6 {[%emt 0:00:11]} (40. Rb6 $142 Rxa4 41. Kg4) 40... Rxa4 {[%emt 0:00:01] [#] ( -> ...b3)} 41. d6 {[%emt 0:00:01] Threatening mate with d7.} Kf6 {[%emt 0:00:10] Strongly threatening ...b3.} 42. Kg4 {[%emt 0:00:17]} b3 {[%emt 0:00:00] Weighted Error Value: White=0.57/Black=0.10 (very precise) .  Mistake:       	White=6     	Black=1      Inaccurate:     	White=2     	Black=1      OK:         	White=7     	Black=13     Best:        	White=2     	Black=4} 0-1

[Event "CCT Julius Baer-D3 2024"]
[Site "Online"]
[Date "2024.09.27"]
[Round "1.3"]
[White "Korobov, Anton"]
[Black "Infernal_XaM"]
[Result "1/2-1/2"]
[ECO "E43"]
[WhiteElo "2537"]
[BlackElo "2550"]
[Annotator "ChessBase"]
[PlyCount "105"]
[EventDate "2024.09.25"]
[EventType "swiss"]
[EventCountry "NET"]
[SourceTitle "playchess.com"]
[Source "ChessBase"]
[SourceQuality "1"]
[TimeControl "600+2"]

1. d4 {[%emt 0:00:03]} Nf6 {[%emt 0:00:12]} 2. c4 {[%emt 0:00:01]} e6 {[%emt 0:00:03]} 3. Nc3 {[%emt 0:00:06]} Bb4 {[%emt 0:00:14]} 4. Nf3 {[%emt 0:00:02]} b6 {[%emt 0:00:10]} 5. e3 {[%emt 0:00:07]} Bxc3+ {[%emt 0:00:09]} 6. bxc3 {[%emt 0:00:03]} Bb7 {[%emt 0:00:01]} 7. Bd3 {[%emt 0:00:02]} d6 {[%emt 0:00:01]} 8. O-O {[%emt 0:00:03]} Nbd7 {[%emt 0:00:01]} 9. Nd2 {[%emt 0:00:01]} e5 {[%emt 0:00:03]} 10. e4 {[%emt 0:00:02]} Qe7 {[%emt 0:00:09]} 11. Re1 {[%emt 0:00:03]} c5 {[%emt 0:00:10]} 12. Bb2 {[%emt 0:00:12]} Nf8 {[%emt 0:00:06]} 13. Nf1 {[%emt 0:00:04]} Ng6 {[%emt 0:00:02]} 14. f3 {[%emt 0:00:16]} Nf4 {[%emt 0:00:04]} 15. Bc2 {[%emt 0:00:16]} O-O-O {[%emt 0:00:22]} 16. Ne3 {[%emt 0:00:04]} g5 {[%emt 0:00:02]} 17. a4 {[%emt 0:00:17]} g4 {[%emt 0:00:07]} 18. fxg4 {[%emt 0:00:29]} h5 {[%emt 0:00:03]} 19. Nf5 {[%emt 0:00:30]} Qd7 {[%emt 0:00:54]} 20. g5 {[%emt 0:00:42]} Rhg8 {[%emt 0:00:43]} 21. h4 {[%emt 0:01:35]} Ng4 {[%emt 0:01:23]} 22. dxe5 {[%emt 0:00:33]} Nxe5 {[%emt 0:00:16]} 23. Rf1 {[%emt 0:00:05]} Nfg6 {[%emt 0:00:16]} 24. Qe2 {[%emt 0:00:18]} Qe6 {[%emt 0:00:14]} 25. a5 {[%emt 0:00:37]} f6 {[%emt 0:00:09]} 26. axb6 {[%emt 0:00:07]} axb6 {[%emt 0:00:03]} 27. Bc1 {[%emt 0:00:06]} Ng4 {[%emt 0:00:09]} 28. gxf6 {[%emt 0:00:37]} Qxf6 {[%emt 0:00:16]} 29. e5 {[%emt 0:00:25]} Qxe5 {[%emt 0:00:44]} 30. Qxe5 {[%emt 0:00:03]} N4xe5 {[%emt 0:00:01]} 31. Rd1 {[%emt 0:00:40]} Kc7 {[%emt 0:00:11]} 32. Bg5 {[%emt 0:00:04]} Rd7 {[%emt 0:00:05]} 33. Ra7 {[%emt 0:00:14]} Kb8 {[%emt 0:00:17]} 34. Rxb7+ {[%emt 0:00:13]} Kxb7 {[%emt 0:00:06]} 35. Nxd6+ {[%emt 0:00:09]} Kb8 {[%emt 0:00:10]} 36. Bf5 {[%emt 0:00:01]} Ra7 {[%emt 0:00:20]} 37. Nb5 {[%emt 0:00:10]} Nxh4 {[%emt 0:00:29]} 38. Bxh4 {[%emt 0:00:39]} Nf3+ {[%emt 0:00:01]} 39. Kh1 {[%emt 0:00:08]} Nxh4 {[%emt 0:00:01]} 40. Nxa7 {[%emt 0:00:01]} Nxf5 {[%emt 0:00:05]} 41. Rd7 {[%emt 0:00:06]} Rg6 {[%emt 0:00:46]} 42. Nb5 {[%emt 0:00:05]} Ne3 {[%emt 0:00:13]} 43. Nd6 {[%emt 0:00:08]} Nxg2 {[%emt 0:00:02]} 44. Rb7+ {[%emt 0:00:02]} Ka8 {[%emt 0:00:01]} 45. Rxb6 {[%emt 0:00:00]} Ne1 {[%emt 0:00:34]} 46. Rb1 {[%emt 0:00:28]} Nd3 {[%emt 0:00:22]} 47. Ne4 {[%emt 0:00:04]} Rg4 {[%emt 0:00:03]} 48. Nd6 {[%emt 0:00:17]} h4 {[%emt 0:00:06]} 49. Kh2 {[%emt 0:00:01]} Ne5 {[%emt 0:00:01]} 50. Rf1 {[%emt 0:00:07]} Nxc4 {[%emt 0:00:29]} 51. Kh3 {[%emt 0:00:04]} Rg3+ {[%emt 0:00:04]} 52. Kxh4 {[%emt 0:00:01]} Rxc3 {[%emt 0:00:01]} 53. Ne4 {[%emt 0:00:01]} 1/2-1/2

[Event "CCT Julius Baer-D3 2024"]
[Site "Online"]
[Date "2024.09.27"]
[Round "1.3"]
[White "Kobalia"]
[Black "Javokhir_Sindarov05"]
[Result "0-1"]
[ECO "B33"]
[WhiteElo "2407"]
[BlackElo "2554"]
[Annotator "NA"]
[PlyCount "84"]
[EventDate "2024.09.25"]
[EventType "swiss"]
[EventCountry "NET"]
[SourceTitle "playchess.com"]
[Source "ChessBase"]
[SourceQuality "1"]
[TimeControl "600+2"]

1. e4 {[%emt 0:00:03]} c5 {[%emt 0:00:03]} 2. Nf3 {[%emt 0:00:01]} e6 {[%emt 0:00:01]} 3. d4 {[%emt 0:00:03]} cxd4 {[%emt 0:00:00]} 4. Nxd4 {[%emt 0:00:00]} Nf6 {[%emt 0:00:00]} 5. Nc3 {[%emt 0:00:01]} Nc6 {[%emt 0:00:02]} 6. Ndb5 {[%emt 0:00:01]} d6 {[%emt 0:00:01]} 7. Bf4 {[%emt 0:00:01]} e5 {[%emt 0:00:03]} 8. Bg5 {[%emt 0:00:01]} a6 {[%emt 0:00:01]} 9. Na3 {[%emt 0:00:01]} b5 {[%emt 0:00:00]} 10. Nd5 {[%emt 0:00:00]} Be7 {[%emt 0:00:00]} 11. Bxf6 {[%emt 0:00:01]} Bxf6 {[%emt 0:00:00]} 12. c4 {[%emt 0:00:01]} b4 {[%emt 0:00:02]} 13. Nc2 {[%emt 0:00:02]} a5 {[%emt 0:00:02]} 14. Be2 {[%emt 0:00:00]} O-O {[%emt 0:00:01]} 15. O-O {[%emt 0:00:01]} Be6 {[%emt 0:00:01]} 16. Qd3 {[%emt 0:00:01]} Bxd5 {[%emt 0:00:03]} 17. cxd5 {[%emt 0:00:02]} Nb8 {[%emt 0:00:01]} 18. Ne3 {[%emt 0:00:01]} Nd7 {[%emt 0:00:01]} 19. Rac1 {[%emt 0:00:02]} Bg5 {[%emt 0:00:02]} 20. Rc6 {[%emt 0:00:41]} Nc5 {[%emt 0:00:03]} 21. Qc2 {[%emt 0:01:25]} Bxe3 {[%emt 0:00:05]} 22. fxe3 {[%emt 0:00:00]} g6 {[%emt 0:01:21]} 23. g3 {[%emt 0:01:12]} Qe7 {[%emt 0:00:55]} 24. Kg2 {[%emt 0:00:04]} Ra7 {[%emt 0:00:40]} 25. h4 {[%emt 0:00:04]} Kg7 {[%emt 0:00:05]} 26. Rd1 {[%emt 0:00:11]} Rc7 {[%emt 0:00:22]} 27. Bb5 {[%emt 0:01:09]} Rb8 {[%emt 0:00:17]} 28. Ba4 {[%emt 0:00:23]} Qd8 {[%emt 0:01:11]} 29. b3 {[%emt 0:00:18]} Rbb7 {[%emt 0:00:52]} 30. Qc4 {[%emt 0:00:11]} Qc8 {[%emt 0:00:03]} 31. Rc1 {[%emt 0:03:25]} Qg4 {[%emt 0:00:12]} 32. Qf1 {[%emt 0:00:01]} Nxe4 {[%emt 0:00:50]} 33. Qf3 {[%emt 0:00:03]} Qxf3+ {[%emt 0:00:02]} 34. Kxf3 {[%emt 0:00:00]} Nc3 {[%emt 0:00:00]} 35. Rxd6 {[%emt 0:00:10]} e4+ {[%emt 0:00:02]} 36. Kg2 {[%emt 0:00:02]} Nxa4 {[%emt 0:00:01]} 37. Rxc7 {[%emt 0:00:07]} Rxc7 {[%emt 0:00:00]} 38. bxa4 {[%emt 0:00:02]} Rc2+ {[%emt 0:00:03]} 39. Kh3 {[%emt 0:00:01]} Rxa2 {[%emt 0:00:00]} 40. Ra6 {[%emt 0:00:11]} Rxa4 {[%emt 0:00:01]} 41. d6 {[%emt 0:00:01]} Kf6 {[%emt 0:00:10]} 42. Kg4 {[%emt 0:00:17]} b3 {[%emt 0:00:00]} 0-1

[Event "CCT Julius Baer-D3 2024"]
[Site "Online"]
[Date "2024.09.27"]
[Round "1.4"]
[White "Caruana, Fabiano"]
[Black "Martirosyan, Haik M."]
[Result "1-0"]
[ECO "E41"]
[WhiteElo "2798"]
[BlackElo "2667"]
[Annotator "TA"]
[PlyCount "83"]
[EventDate "2024.09.25"]
[EventType "swiss"]
[EventCountry "NET"]
[SourceTitle "playchess.com"]
[Source "ChessBase"]
[SourceQuality "1"]
[TimeControl "600+2"]

{[%evp 17,83,31,56,0,2,2,0,0,33,15,31,20,23,20,27,25,31,29,35,37,31,32,33,24,33,25,35,33,39,7,0,-14,0,0,18,10,14,0,10,0,0,-6,0,-98,-14,-17,140,116,147,151,221,221,307,248,247,248,249,249,590,529,639,626,813,591,626,606,1540,699]} 1. d4 {[%emt 0:00:06]} Nf6 {[%emt 0:00:05]} 2. c4 {[%emt 0:00:02]} e6 {[%emt 0:00:02][%cal Be7e6,Be6e5][%mdl 32]} 3. Nc3 {[%emt 0:00:08]} Bb4 {[%emt 0:00:03]} 4. e3 {[%emt 0:00:03]} O-O {[%emt 0:00:11]} 5. Bd3 {[%emt 0:00:03]} Bxc3+ {[%emt 0:00:12]} 6. bxc3 {[%emt 0:00:02]} d6 {[%emt 0:00:01]} 7. e4 {[%emt 0:00:08]} e5 {[%emt 0:00:01]} 8. Ne2 {[%emt 0:00:02]} c5 {[%emt 0:00:06]} 9. O-O {[%emt 0:00:49]} Nc6 {[%emt 0:00:02][%cal Re5d4]} 10. h3 {[%emt 0:00:38]} ({Better is} 10. d5 $14 Ne7 11. Ng3) 10... exd4 {[%emt 0:00:37]} 11. cxd4 {[%emt 0:00:02]} cxd4 {[%emt 0:00:00]} 12. Bb2 {[%emt 0:00:08] The position is equal.} Nd7 {[%emt 0:00:01]} 13. Nxd4 {[%emt 0:00:07]} Nxd4 {[%emt 0:00:02]} 14. Bxd4 {[%emt 0:00:02]} b6 {[%emt 0:00:01]} 15. Re1 {[%emt 0:00:16]} Bb7 {[%emt 0:00:16]} 16. Rc1 {[%emt 0:00:03][%cal Ba1c1,Bc1c3,Bc3e3][%mdl 32]} Re8 {[%emt 0:00:05]} 17. f3 {[%emt 0:00:05]} Rc8 {[%emt 0:00:05]} 18. Bf1 {[%emt 0:00:07]} Re6 {[%emt 0:00:08]} 19. Qd2 {[%emt 0:00:07]} h6 {[%emt 0:00:29]} 20. Red1 {[%emt 0:00:09]} Qe7 {[%emt 0:00:09]} 21. Rc3 {[%emt 0:00:43]} Rg6 {[%emt 0:00:25]} 22. a4 {[%emt 0:00:08][%cal Oa4a5]} Bc6 {[%emt 0:00:19][%cal Od7c5]} 23. Re3 {[%emt 0:00:26]} a5 {[%emt 0:00:44]} 24. Rb1 {[%emt 0:00:18]} Rb8 {[%emt 0:00:01]} 25. Qc2 {[%emt 0:00:39]} Re6 {[%emt 0:00:26]} 26. Ra3 {[%emt 0:00:32]} Nc5 {[%emt 0:00:16]} 27. Ra2 {[%emt 0:00:12]} Qe8 {[%emt 0:00:06]} 28. Qf2 {[%emt 0:00:30]} Nxa4 {[%emt 0:00:24]} 29. Ra3 {[%emt 0:00:52]} Nc5 {[%emt 0:00:21]} 30. e5 {[%emt 0:00:02]} Rxe5 {[%emt 0:01:10]} (30... dxe5 $17 31. Bxc5 bxc5 32. Rxb8 Qxb8 33. Rxa5 e4 34. fxe4 Rf6 (34... Bxe4 35. Rxc5 Kh7 36. Rb5 $15)) 31. Bxe5 $11 {[%emt 0:00:02]} Qxe5 {[%emt 0:00:02]} (31... dxe5 $11 32. Qe3 a4) 32. Rxa5 $16 {[%emt 0:00:14]} bxa5 {[%emt 0:00:29]} 33. Rxb8+ {[%emt 0:00:03]} Kh7 {[%emt 0:00:00] [#]} (33... Be8 $16 34. Qe2 Qxe2 35. Bxe2 Kf8) 34. Rb6 $1 $18 {[%emt 0:00:14]} Bd7 {[%emt 0:00:20]} 35. Qd2 {[%emt 0:00:06]} a4 {[%emt 0:00:06]} 36. Rxd6 {[%emt 0:00:05]} ({Inferior is} 36. Qxd6 Qe3+ 37. Kh2 a3 $14) 36... Be6 {[%emt 0:00:24] Inhibits Rd5.} 37. Qd4 {[%emt 0:00:26]} Qg5 {[%emt 0:02:17] [#]} (37... Qxd4+ {is tougher.} 38. Rxd4 a3) 38. f4 {[%emt 0:00:05] White is clearly winning.} Qh5 {[%emt 0:00:03]} 39. g4 {[%emt 0:00:09]} Qh4 {[%emt 0:00:15]} 40. Qxc5 {[%emt 0:00:06]} Qg3+ {[%emt 0:00:05]} 41. Bg2 {[%emt 0:00:02]} a3 {[%emt 0:00:01]} 42. Ra6 {[%emt 0:00:10] Weighted Error Value: White=0.13 (very precise) /Black=0.37.  Mistake:       	White=1     	Black=4      Inaccurate:     	White=1     	Black=3      OK:         	White=9     	Black=8      Best:        	White=2     	---} 1-0

[Event "CCT Julius Baer-D3 2024"]
[Site "Online"]
[Date "2024.09.27"]
[Round "1.4"]
[White "Duda, Jan-Krzysztof"]
[Black "Alekseenko, Kirill"]
[Result "1/2-1/2"]
[ECO "C75"]
[WhiteElo "2732"]
[BlackElo "2679"]
[Annotator "RC"]
[PlyCount "128"]
[EventDate "2024.09.25"]
[EventType "swiss"]
[EventCountry "NET"]
[SourceTitle "playchess.com"]
[Source "ChessBase"]
[SourceQuality "1"]
[TimeControl "600+2"]

1. e4 {[%emt 0:00:06]} e5 {[%emt 0:00:06]} 2. Nf3 {[%emt 0:00:01]} Nc6 {[%emt 0:00:01]} 3. Bb5 {[%emt 0:00:01]} a6 {[%emt 0:00:00]} 4. Ba4 {[%emt 0:00:01]} d6 {[%emt 0:00:06]} 5. c3 {[%emt 0:00:08]} Bd7 {[%emt 0:00:02]} 6. O-O {[%emt 0:00:05]} Nge7 {[%emt 0:00:05]} 7. d4 {[%emt 0:00:07]} Ng6 {[%emt 0:00:01]} 8. Re1 {[%emt 0:00:47]} Be7 {[%emt 0:00:02]} 9. Nbd2 {[%emt 0:00:03]} O-O {[%emt 0:00:02]} 10. Nf1 {[%emt 0:00:11]} exd4 {[%emt 0:01:53]} 11. cxd4 {[%emt 0:00:07]} Bg4 {[%emt 0:00:01]} 12. Bxc6 {[%emt 0:00:41]} bxc6 {[%emt 0:00:00]} 13. Ne3 {[%emt 0:00:01]} Bd7 {[%emt 0:00:27]} 14. g3 {[%emt 0:01:03]} Re8 {[%emt 0:00:13]} 15. Bd2 {[%emt 0:00:09]} Bf8 {[%emt 0:00:45]} 16. Ng2 {[%emt 0:01:22]} Bg4 {[%emt 0:00:17]} 17. h3 {[%emt 0:00:02]} Bxh3 {[%emt 0:00:20]} 18. Ng5 {[%emt 0:00:01]} Bd7 {[%emt 0:00:37]} 19. f4 {[%emt 0:02:00]} h6 {[%emt 0:00:11]} 20. Nf3 {[%emt 0:00:02]} d5 {[%emt 0:00:08]} 21. e5 {[%emt 0:00:17]} c5 {[%emt 0:00:07]} 22. dxc5 {[%emt 0:00:25]} Bxc5+ {[%emt 0:00:36]} 23. Be3 {[%emt 0:00:01]} Bb4 {[%emt 0:00:02]} 24. Rf1 {[%emt 0:00:14]} Bg4 {[%emt 0:00:54]} 25. Rc1 {[%emt 0:00:12]} Bf8 {[%emt 0:00:14]} 26. Bc5 {[%emt 0:00:20]} Rb8 {[%emt 0:00:31]} 27. Qd2 {[%emt 0:00:40]} Bxc5+ {[%emt 0:01:05]} 28. Rxc5 {[%emt 0:00:00]} Bxf3 {[%emt 0:00:08]} 29. Rxf3 {[%emt 0:00:03]} Ne7 {[%emt 0:00:01]} 30. b4 {[%emt 0:01:20]} c6 {[%emt 0:00:02]} 31. Kh2 {[%emt 0:00:02]} Rb5 {[%emt 0:00:05]} 32. Rxb5 {[%emt 0:00:14]} cxb5 {[%emt 0:00:02]} 33. Rd3 {[%emt 0:00:04]} Qd7 {[%emt 0:00:24]} 34. Ne3 {[%emt 0:00:01]} Rd8 {[%emt 0:00:00]} 35. Rd4 {[%emt 0:00:01]} Qe6 {[%emt 0:00:07]} 36. a3 {[%emt 0:00:03]} h5 {[%emt 0:00:16]} 37. Qd1 {[%emt 0:00:06]} g6 {[%emt 0:00:03]} 38. Qd2 {[%emt 0:00:03]} Kg7 {[%emt 0:00:02]} 39. Qd3 {[%emt 0:00:01]} Rc8 {[%emt 0:00:19]} 40. Qd2 {[%emt 0:00:08]} Nf5 {[%emt 0:00:01]} 41. Nxf5+ {[%emt 0:00:05]} Qxf5 {[%emt 0:00:01]} 42. Qd3 {[%emt 0:00:01]} Rc2+ {[%emt 0:00:18]} 43. Kg1 {[%emt 0:00:02]} Rc1+ {[%emt 0:00:01]} 44. Kg2 {[%emt 0:00:01]} Qg4 {[%emt 0:00:07]} 45. f5 {[%emt 0:00:06]} Rc2+ {[%emt 0:00:20]} 46. Kg1 {[%emt 0:00:01]} Rc1+ {[%emt 0:00:06]} 47. Kg2 {[%emt 0:00:01]} Rc2+ {[%emt 0:00:05]} 48. Qxc2 {[%emt 0:00:02]} Qxd4 {[%emt 0:00:00]} 49. f6+ {[%emt 0:00:00]} Kh6 {[%emt 0:00:06]} 50. Qc7 {[%emt 0:00:02]} Qd2+ {[%emt 0:00:10]} 51. Kf1 {[%emt 0:00:06]} Qd1+ {[%emt 0:00:02]} 52. Kf2 {[%emt 0:00:01]} Qd2+ {[%emt 0:00:01]} 53. Kf1 {[%emt 0:00:01]} Qd3+ {[%emt 0:00:01]} 54. Kg2 {[%emt 0:00:02]} Qe4+ {[%emt 0:00:02]} 55. Kf2 {[%emt 0:00:01]} Qd4+ {[%emt 0:00:07]} 56. Kg2 {[%emt 0:00:03]} Kg5 {[%emt 0:00:04]} 57. e6 {[%emt 0:00:02]} Qe4+ {[%emt 0:00:05]} 58. Kg1 {[%emt 0:00:00]} Qe1+ {[%emt 0:00:02]} 59. Kg2 {[%emt 0:00:01]} Qe2+ {[%emt 0:00:00]} 60. Kg1 {[%emt 0:00:01]} Qe3+ {[%emt 0:00:02]} 61. Kg2 {[%emt 0:00:02]} Qe4+ {[%emt 0:00:02]} 62. Kg1 {[%emt 0:00:01]} Qe1+ {[%emt 0:00:03]} 63. Kg2 {[%emt 0:00:00]} Qe2+ {[%emt 0:00:03]} 64. Kg1 {[%emt 0:00:01]} Qe1+ {[%emt 0:00:01]} 1/2-1/2

[Event "CCT Julius Baer-D3 2024"]
[Site "Online"]
[Date "2024.09.27"]
[Round "1.4"]
[White "Sarana, Alexey"]
[Black "Niemann, Hans Moke"]
[Result "1/2-1/2"]
[ECO "D15"]
[WhiteElo "2713"]
[BlackElo "2733"]
[Annotator "RC"]
[PlyCount "62"]
[EventDate "2024.09.25"]
[EventType "swiss"]
[EventCountry "NET"]
[SourceTitle "playchess.com"]
[Source "ChessBase"]
[SourceQuality "1"]
[TimeControl "600+2"]

1. d4 {[%emt 0:00:03]} d5 {[%emt 0:00:07]} 2. c4 {[%emt 0:00:01]} c6 {[%emt 0:00:02]} 3. Nc3 {[%emt 0:00:02]} Nf6 {[%emt 0:00:01]} 4. Nf3 {[%emt 0:00:00]} a6 {[%emt 0:00:39]} 5. g3 {[%emt 0:00:05]} dxc4 {[%emt 0:00:16]} 6. Bg2 {[%emt 0:00:01]} b5 {[%emt 0:00:02]} 7. Ne5 {[%emt 0:00:06]} e6 {[%emt 0:00:05]} 8. O-O {[%emt 0:00:01]} Bb7 {[%emt 0:00:03]} 9. b3 {[%emt 0:00:00]} cxb3 {[%emt 0:00:06]} 10. Qxb3 {[%emt 0:00:02]} Be7 {[%emt 0:00:18]} 11. Rd1 {[%emt 0:00:31]} O-O {[%emt 0:00:03]} 12. a4 {[%emt 0:00:02]} b4 {[%emt 0:00:09]} 13. a5 {[%emt 0:00:14]} Nbd7 {[%emt 0:00:05]} 14. Nc4 {[%emt 0:01:02]} Nd5 {[%emt 0:00:22]} 15. Na4 {[%emt 0:00:13]} c5 {[%emt 0:00:26]} 16. e4 {[%emt 0:00:15]} N5f6 {[%emt 0:00:10]} 17. dxc5 {[%emt 0:00:17]} Qc7 {[%emt 0:00:05]} 18. Nd6 {[%emt 0:01:59]} Bc6 {[%emt 0:00:59]} 19. Be3 {[%emt 0:01:38]} Bxa4 {[%emt 0:01:03]} 20. Qxa4 {[%emt 0:00:00]} Nxc5 {[%emt 0:00:02]} 21. Bxc5 {[%emt 0:00:01]} Qxc5 {[%emt 0:00:01]} 22. Rac1 {[%emt 0:00:01]} Qh5 {[%emt 0:00:12]} 23. Qxb4 {[%emt 0:00:34]} Rab8 {[%emt 0:00:06]} 24. Qc4 {[%emt 0:00:10]} Qxa5 {[%emt 0:00:09]} 25. Ra1 {[%emt 0:00:02]} Qh5 {[%emt 0:00:04]} 26. Qxa6 {[%emt 0:00:05]} Ng4 {[%emt 0:00:17]} 27. Qe2 {[%emt 0:00:42]} Qxh2+ {[%emt 0:00:06]} 28. Kf1 {[%emt 0:00:01]} Qh5 {[%emt 0:00:08]} 29. Kg1 {[%emt 0:00:02]} Qh2+ {[%emt 0:00:02]} 30. Kf1 {[%emt 0:00:02]} Qh5 {[%emt 0:00:00]} 31. Kg1 {[%emt 0:00:00]} Qh2+ {[%emt 0:00:01]} 1/2-1/2

[Event "CCT Julius Baer-D3 2024"]
[Site "Online"]
[Date "2024.09.27"]
[Round "1.4"]
[White "Deac, Bogdan-Daniel"]
[Black "Yoo, Christopher Woojin"]
[Result "1/2-1/2"]
[ECO "E12"]
[WhiteElo "2680"]
[BlackElo "2603"]
[Annotator "TA"]
[PlyCount "76"]
[EventDate "2024.09.25"]
[EventType "swiss"]
[EventCountry "NET"]
[SourceTitle "playchess.com"]
[Source "ChessBase"]
[SourceQuality "1"]
[TimeControl "600+2"]

{[%evp 13,76,5,18,-11,-18,-2,31,-2,12,21,33,-18,-16,-10,-6,0,0,0,0,0,0,0,0,0,0,0,0,0,0,-10,-15,-12,18,20,19,13,16,9,13,10,20,15,20,29,38,0,13,0,0,0,0,0,0,0,0,0,0,-54,-54,-54,-53,-53,-53,-156,-79]} 1. Nf3 {[%emt 0:00:04]} Nf6 {[%emt 0:02:07]} 2. c4 {[%emt 0:00:04]} b6 {[%emt 0:00:09]} 3. d4 {[%emt 0:00:05]} e6 {[%emt 0:00:04]} 4. a3 {[%emt 0:00:04]} Bb7 {[%emt 0:00:07]} 5. Nc3 {[%emt 0:00:03]} d5 {[%emt 0:00:05]} 6. Bg5 {[%emt 0:00:04]} Be7 {[%emt 0:00:09]} 7. Qa4+ {[%emt 0:00:07]} Qd7 {[%emt 0:00:28]} 8. Qb3 {[%emt 0:00:05]} dxc4 {[%emt 0:00:19]} (8... c5 {seems wilder.} 9. cxd5 Nxd5 10. Ne5 Qd8) 9. Qxc4 {[%emt 0:00:04]} Nc6 {[%emt 0:00:07]} 10. Rd1 {[%emt 0:00:07] White is slightly better.} O-O {[%emt 0:00:11]} 11. e3 {[%emt 0:00:07]} Rfd8 {[%emt 0:00:18]} 12. Be2 {[%emt 0:00:04]} (12. Bxf6 $14 Bxf6 13. b4) 12... Na5 $11 {[%emt 0:00:11]} 13. Qb5 {[%emt 0:00:37]} Qxb5 {[%emt 0:00:09]} 14. Bxb5 {[%emt 0:00:07]} c6 {[%emt 0:00:10]} 15. Be2 {[%emt 0:00:23] [#] Black must now prevent b4.} c5 {[%emt 0:00:03]} 16. dxc5 {[%emt 0:00:03]} Rxd1+ {[%emt 0:00:10]} 17. Kxd1 {[%emt 0:00:10]} bxc5 {[%emt 0:00:02]} 18. Kc2 {[%emt 0:00:06]} h6 {[%emt 0:00:26]} 19. Bh4 {[%emt 0:00:09]} g5 {[%emt 0:00:04]} 20. Bg3 {[%emt 0:00:03]} Ne4 {[%emt 0:00:04]} 21. Nxe4 {[%emt 0:01:08]} Bxe4+ {[%emt 0:00:04]} 22. Bd3 {[%emt 0:00:03]} Bxd3+ {[%emt 0:00:10]} 23. Kxd3 {[%emt 0:00:03]} Bf6 {[%emt 0:00:02]} 24. Be5 {[%emt 0:00:35]} Bxe5 {[%emt 0:00:12]} 25. Nxe5 {[%emt 0:00:04][%mdl 4096] Endgame. KRN-KRN} f6 {[%emt 0:00:03]} 26. Nf3 {[%emt 0:00:14]} Rb8 {[%emt 0:00:08]} 27. Kc3 {[%emt 0:00:06]} Kf7 {[%emt 0:00:08]} 28. Nd2 {[%emt 0:00:53]} f5 {[%emt 0:00:09]} 29. b3 {[%emt 0:00:48]} Ke7 {[%emt 0:00:06]} 30. f3 {[%emt 0:00:32]} h5 {[%emt 0:00:06]} 31. h3 {[%emt 0:00:18]} h4 {[%emt 0:00:14]} 32. Rd1 {[%emt 0:00:24]} Rd8 {[%emt 0:00:13]} 33. Re1 {[%emt 0:00:21]} Kf6 {[%emt 0:00:13]} 34. e4 {[%emt 0:00:11]} Nc6 {[%emt 0:00:06]} 35. exf5 {[%emt 0:00:12]} (35. Nc4 $11) 35... exf5 $15 {[%emt 0:00:02]} 36. Nc4 {[%emt 0:00:03]} Nd4 {[%emt 0:00:05]} 37. a4 {[%emt 0:00:21]} Ne6 {[%emt 0:00:07]} 38. Re5 {[%emt 0:01:34] [#]} ({White should try} 38. Ne3 $15) 38... Rd1 $1 {[%emt 0:00:09] Weighted Error Value: White=0.15 (very precise) /Black=0.05 (flawless) .  Mistake:       	White=3     	---        Inaccurate:     	White=2     	Black=2      OK:         	White=11    	Black=16     Best:        	White=1     	---        Strong:       	---       	Black=1} 1/2-1/2